fUSD/lending_fUSD_20250619
["ID","MTS","AMOUNT","RATE_DAILY","PERIOD"]
[366653790,1750377045009,-490.0,0.00028717,4]
[366653791,1750377045019,-490.0,0.00028717,4]
[366653792,1750377045029,-490.0,0.00028717,4]
[366653793,1750377045039,-490.0,0.00028717,4]
[366653794,1750377045049,-632.82,0.00028717,4]
[366653795,1750377045061,-490.0,0.00028717,4]
[366653796,1750377045071,-597.09,0.00028717,4]
[366653797,1750377045081,-490.0,0.00028717,4]
[366653798,1750377045090,-490.0,0.00028717,4]
[366653799,1750377045100,-490.0,0.00028717,4]
[366653800,1750377045111,-490.0,0.00028717,4]
[366653801,1750377045120,-490.0,0.00028717,4]
[366653802,1750377045131,-490.0,0.00028717,4]
[366653803,1750377045140,-490.0,0.00028717,4]
[366653804,1750377045150,-490.0,0.00028717,4]
[366653805,1750377045161,-490.0,0.00028717,4]
[366653806,1750377045171,-490.0,0.00028717,4]
[366653807,1750377045182,-490.0,0.00028717,4]
[366653808,1750377045192,-490.0,0.00028717,4]
[366653809,1750377045202,-490.0,0.00028717,4]
[366653810,1750377045212,-490.0,0.00028717,4]
[366653811,1750377045222,-490.0,0.00028717,4]
[366653812,1750377045232,-490.0,0.00028717,4]
[366653813,1750377045242,-490.0,0.00028717,4]
[366653814,1750377045252,-490.0,0.00028717,4]
[366653815,1750377045262,-595.99,0.00028717,4]
[366653816,1750377045272,-490.0,0.00028717,4]
[366653817,1750377045281,-490.0,0.00028717,4]
[366653818,1750377045290,-490.0,0.00028717,4]
[366653819,1750377045299,-490.0,0.00028717,4]
[366653820,1750377045309,-753.46,0.00028717,4]
[366653821,1750377045319,-490.0,0.00028717,4]
[366653822,1750377045328,-490.0,0.00028717,4]
[366653823,1750377045338,-490.0,0.00028717,4]
[366653824,1750377045347,-490.0,0.00028717,4]
[366653825,1750377045357,-527.4,0.00028717,4]
[366653826,1750377045366,-1889.54,0.00028717,4]
[366653827,1750377045377,-513.55,0.00028717,4]
[366653828,1750377045387,-490.0,0.00028717,4]
[366653829,1750377045397,-490.0,0.00028717,4]
[366653830,1750377045406,-558.6,0.00028717,4]
[366653831,1750377045416,-490.0,0.00028717,4]
[366653832,1750377045426,-490.0,0.00028717,4]
[366653833,1750377045436,-288.84457735,0.00028717,4]
[366653835,1750377045446,-490.0,0.00028717,4]
[366653836,1750377045457,-490.0,0.00028717,4]
[366653837,1750377045467,-490.0,0.00028717,4]
[366653838,1750377045477,-490.0,0.00028717,4]
[366653839,1750377045487,-490.0,0.00028717,4]
[366653840,1750377045497,-490.0,0.00028717,4]
[366653841,1750377045507,-490.0,0.00028717,4]
[366653842,1750377045518,-490.0,0.00028717,4]
[366653843,1750377045528,-480.0,0.00028717,4]
[366653844,1750377045539,-628.21,0.00028717,4]
[366653845,1750377045549,-490.0,0.00028717,4]
[366653846,1750377045559,-490.0,0.00028717,4]
[366653847,1750377045570,-490.0,0.00028717,4]
[366653848,1750377045581,-490.0,0.00028717,4]
[366653849,1750377045591,-490.0,0.00028717,4]
[366653850,1750377045602,-490.0,0.00028717,4]
[366653851,1750377045612,-490.0,0.00028717,4]
[366653852,1750377045623,-552.93,0.00028717,4]
[366653853,1750377045633,-490.0,0.00028717,4]
[366653854,1750377045643,-734.1,0.00028717,4]
[366653855,1750377045653,-490.0,0.00028717,4]
[366653856,1750377045663,-500.0,0.00028717,4]
[366653857,1750377045676,-490.0,0.00028717,4]
[366653858,1750377045686,-490.0,0.00028717,4]
[366653859,1750377045696,-490.0,0.00028717,4]
[366653860,1750377045706,-709.19,0.00028717,4]
[366653861,1750377045725,-804.42,0.00028717,4]
[366653862,1750377045735,-490.0,0.00028717,4]
[366653863,1750377045745,-490.0,0.00028717,4]
[366653864,1750377045756,-362.49825364,0.00028717,4]
[366653865,1750377045767,-490.0,0.00028717,4]
[366653866,1750377045777,-490.0,0.00028717,4]
[366653867,1750377045788,-490.0,0.00028717,4]
[366653868,1750377045799,-490.0,0.00028717,4]
[366653869,1750377045809,-490.0,0.00028717,4]
[366653870,1750377045819,-490.0,0.00028717,4]
[366653871,1750377045828,-2812.53,0.00028717,4]
[366653872,1750377045838,-490.0,0.00028717,4]
[366653873,1750377045849,-490.0,0.00028717,4]
[366653874,1750377045859,-490.0,0.00028717,4]
[366653875,1750377045869,-840.17,0.00028717,4]
[366653876,1750377045879,-490.0,0.00028717,4]
[366653877,1750377045890,-490.0,0.00028717,4]
[366653878,1750377045900,-490.0,0.00028717,4]
[366653879,1750377045910,-490.0,0.00028717,4]
[366653880,1750377045920,-490.0,0.00028717,4]
[366653881,1750377045930,-490.0,0.00028717,4]
[366653882,1750377045940,-490.0,0.00028717,4]
[366653883,1750377045950,-490.0,0.00028717,4]
[366653884,1750377045960,-490.0,0.00028717,4]
[366653885,1750377045970,-490.0,0.00028717,4]
[366653886,1750377045980,-490.0,0.00028717,4]
[366653887,1750377045990,-3727.2,0.00028717,4]
[366653888,1750377046000,-490.0,0.00028717,4]
[366653889,1750377046010,-490.0,0.00028717,4]
[366653890,1750377046020,-490.0,0.00028717,4]
[366653891,1750377046029,-490.0,0.00028717,4]
[366653892,1750377046039,-490.0,0.00028717,4]
[366653893,1750377046049,-490.0,0.00028717,4]
[366653894,1750377046059,-490.0,0.00028717,4]
[366653895,1750377046068,-490.0,0.00028717,4]
[366653897,1750377046078,-490.0,0.00028717,4]
[366653899,1750377046087,-186.95708261,0.00028717,4]
[366653901,1750377047267,-303.04291739,0.00028717,4]
[366653902,1750377047277,-1628.66,0.00028717,4]
[366653903,1750377047286,-490.0,0.00028717,4]
[366653904,1750377047296,-490.0,0.00028717,4]
[366653905,1750377047306,-490.0,0.00028717,4]
[366653906,1750377047316,-490.0,0.00028717,4]
[366653907,1750377047326,-490.0,0.00028717,4]
[366653908,1750377047335,-490.0,0.00028717,4]
[366653909,1750377047345,-490.0,0.00028717,4]
[366653910,1750377047355,-490.0,0.00028717,4]
[366653911,1750377047364,-490.0,0.00028717,4]
[366653912,1750377047374,-490.0,0.00028717,4]
[366653913,1750377047384,-544.5,0.00028717,4]
[366653914,1750377047394,-542.14,0.00028717,4]
[366653915,1750377047404,-490.0,0.00028717,4]
[366653916,1750377047414,-490.0,0.00028717,4]
[366653917,1750377047424,-490.0,0.00028717,4]
[366653918,1750377047434,-490.0,0.00028717,4]
[366653919,1750377047444,-490.0,0.00028717,4]
[366653920,1750377047454,-806.38,0.00028717,4]
[366653921,1750377047463,-520.81283677,0.00028717,4]
[366653922,1750377047475,-534.68716323,0.00028717,4]
[366653923,1750377047485,-490.0,0.00028717,4]
[366653924,1750377047495,-1134.55,0.00028717,4]
[366653925,1750377047505,-490.0,0.00028717,4]
[366653926,1750377047515,-490.0,0.00028717,4]
[366653927,1750377047524,-778.15,0.00028717,4]
[366653928,1750377047534,-490.0,0.00028717,4]
[366653929,1750377047544,-490.0,0.00028717,4]
[366653930,1750377047554,-603.23,0.00028717,4]
[366653931,1750377047563,-1424.768863,0.00028717,4]
[366653932,1750377047573,-158.697587,0.00028717,4]
[366653933,1750377047582,-490.0,0.00028717,4]
[366653934,1750377047592,-490.0,0.00028717,4]
[366653935,1750377047602,-490.0,0.00028717,4]
[366653936,1750377047611,-162.284004,0.00028717,4]
[366653937,1750377047621,-659.06,0.00028717,4]
[366653938,1750377047630,-729.49,0.00028717,4]
[366653939,1750377047639,-1202.64,0.00028717,4]
[366653940,1750377047649,-967.77,0.00028717,4]
[366653941,1750377047659,-490.0,0.00028717,4]
[366653942,1750377047669,-500.0,0.00028717,2]
[366653943,1750377047682,-248.88236362,0.00028717,2]
[366653944,1750377047692,-500.0,0.00028717,2]
[366653945,1750377047701,-165.21086152,0.00028717,2]
[366653946,1750377047711,-333.83944039,0.00028717,2]
[366653947,1750377047722,-500.0,0.00028717,2]
[366653948,1750377047731,-500.0,0.00028717,2]
[366653949,1750377047741,-383.68972927,0.00028717,2]
[366653950,1750377047750,-500.0,0.00028717,2]
[366653951,1750377047760,-500.0,0.00028717,2]
[366653952,1750377047770,-500.0,0.00028717,2]
[366653953,1750377047780,-500.0,0.00028717,2]
[366653954,1750377047789,-1125.08,0.00028717,4]
[366653955,1750377047799,-490.0,0.00028718,4]
[366653956,1750377047807,-490.0,0.00028718,4]
[366653957,1750377047817,-490.0,0.00028718,4]
[366653958,1750377047826,-490.0,0.00028718,4]
[366653959,1750377047837,-490.0,0.00028718,4]
[366653960,1750377047846,-181.53528797,0.00028718,4]
[366653961,1750377047872,-318.46471203,0.00028718,4]
[366653962,1750377047882,-490.0,0.00028718,4]
[366653963,1750377047891,-1000.0,0.00028718,4]
[366653964,1750377047901,-583.22614602,0.00028718,4]
[366653965,1750377047911,-490.0,0.00028718,4]
[366653966,1750377047921,-490.0,0.00028718,4]
[366653967,1750377047931,-490.0,0.00028718,4]
[366653968,1750377047941,-490.0,0.00028718,4]
[366653969,1750377047950,-490.0,0.00028718,4]
[366653970,1750377047960,-490.0,0.00028718,4]
[366653971,1750377047970,-490.0,0.00028718,4]
[366653972,1750377047980,-490.0,0.00028718,4]
[366653973,1750377047989,-490.0,0.00028718,4]
[366653974,1750377047999,-490.0,0.00028718,4]
[366653975,1750377048009,-490.0,0.00028718,4]
[366653976,1750377048019,-490.0,0.00028718,4]
[366653977,1750377048029,-490.0,0.00028718,4]
[366653978,1750377048038,-490.0,0.00028718,4]
[366653979,1750377048047,-490.0,0.00028718,4]
[366653980,1750377048056,-490.0,0.00028718,4]
[366653981,1750377048066,-490.0,0.00028718,4]
[366653982,1750377048075,-490.0,0.00028718,4]
[366653983,1750377048084,-490.0,0.00028718,4]
[366653984,1750377048094,-490.63309931,0.00028718,2]
[366653985,1750377048104,-490.0,0.00028718,4]
[366653986,1750377048113,-151.38814331,0.00028718,2]
[366653987,1750377048122,-349.78789943,0.00028718,4]
[366653988,1750377048134,-140.21210057,0.00028718,4]
[366653989,1750377048144,-490.0,0.00028718,4]
[366653990,1750377048153,-418.78789943,0.00028718,2]
[366653991,1750377048168,-112.58210057,0.00028718,2]
[366653992,1750377048178,-576.6622586,0.00028718,4]
[366653993,1750377048189,-4.7013744,0.00028718,4]
[366653994,1750377048199,-490.0,0.00028718,4]
[366653995,1750377048208,-345.2986256,0.00028718,4]
[366653996,1750377048220,-144.7013744,0.00028718,4]
[366653997,1750377048229,-490.0,0.00028718,4]
[366653998,1750377048239,-490.0,0.00028718,4]
[366653999,1750377048249,-490.0,0.00028718,2]
[366654000,1750377048258,-490.0,0.00028718,4]
[366654001,1750377048268,-490.0,0.00028718,4]
[366654002,1750377048278,-490.0,0.00028718,2]
[366654003,1750377048287,-490.0,0.00028718,4]
[366654004,1750377048297,-490.0,0.00028718,4]
[366654005,1750377048306,-490.0,0.00028718,4]
[366654006,1750377048315,-490.0,0.00028718,4]
[366654007,1750377048325,-358.2986256,0.00028718,4]
[366654008,1750377048338,-131.7013744,0.00028718,4]
[366654009,1750377048347,-490.0,0.00028718,4]
[366654010,1750377048357,-490.0,0.00028718,4]
[366654011,1750377048367,-490.0,0.00028718,4]
[366654012,1750377048376,-490.0,0.00028718,4]
[366654013,1750377048386,-490.0,0.00028718,4]
[366654014,1750377048395,-663.04,0.00028718,4]
[366654015,1750377048405,-490.0,0.00028718,4]
[366654016,1750377048414,-283.47324968,0.00028718,4]
[366654017,1750377048424,-490.0,0.00028718,4]
[366654018,1750377048433,-1180.64,0.00028718,4]
[366654019,1750377048443,-490.0,0.00028718,4]
[366654020,1750377048453,-490.0,0.00028718,4]
[366654021,1750377048463,-490.0,0.00028718,4]
[366654022,1750377048472,-490.0,0.00028718,4]
[366654023,1750377048482,-490.0,0.00028718,4]
[366654024,1750377048492,-490.0,0.00028718,4]
[366654025,1750377048502,-495.88,0.00028718,4]
[366654026,1750377048512,-490.0,0.00028718,4]
[366654027,1750377048522,-490.0,0.00028718,4]
[366654028,1750377048532,-490.0,0.00028718,4]
[366654029,1750377048542,-490.0,0.00028718,4]
[366654030,1750377048552,-160.72416639,0.00028718,4]
[366654031,1750377048562,-1465.42,0.00028718,4]
[366654032,1750377048572,-490.0,0.00028718,4]
[366654033,1750377048582,-490.0,0.00028718,4]
[366654034,1750377048594,-490.0,0.00028718,4]
[366654035,1750377048604,-490.0,0.00028718,4]
[366654036,1750377048614,-490.0,0.00028718,4]
[366654037,1750377048624,-698.05,0.00028718,4]
[366654038,1750377048634,-956.64,0.00028718,4]
[366654039,1750377048644,-490.0,0.00028718,4]
[366654040,1750377048654,-490.0,0.00028718,4]
[366654041,1750377048664,-490.0,0.00028718,4]
[366654042,1750377048676,-602.27,0.00028718,4]
[366654043,1750377048686,-808.07,0.00028718,4]
[366654044,1750377048696,-567.75,0.00028718,4]
[366654045,1750377048706,-490.0,0.00028718,4]
[366654046,1750377048717,-490.0,0.00028718,4]
[366654047,1750377048727,-490.0,0.00028718,4]
[366654048,1750377048736,-490.0,0.00028718,4]
[366654049,1750377048747,-490.0,0.00028718,4]
[366654050,1750377048758,-646.95,0.00028718,4]
[366654051,1750377048768,-490.0,0.00028718,4]
[366654052,1750377048779,-490.0,0.00028718,4]
[366654053,1750377048789,-1169.24,0.00028718,4]
[366654054,1750377048799,-490.0,0.00028718,4]
[366654055,1750377048809,-490.0,0.00028718,4]
[366654056,1750377048819,-1297.68,0.00028718,4]
[366654057,1750377048829,-490.0,0.00028718,4]
[366654058,1750377048838,-490.0,0.00028718,4]
[366654059,1750377048848,-490.0,0.00028718,4]
[366654060,1750377048858,-490.0,0.00028718,4]
[366654061,1750377048868,-490.0,0.00028718,4]
[366654062,1750377048877,-490.0,0.00028718,4]
[366654063,1750377048887,-490.0,0.00028718,4]
[366654064,1750377048896,-490.0,0.00028718,4]
[366654065,1750377048906,-1297.3,0.00028718,4]
[366654066,1750377048917,-628.5,0.00028718,4]
[366654067,1750377048926,-490.0,0.00028718,4]
[366654068,1750377048937,-490.0,0.00028718,4]
[366654069,1750377048946,-490.0,0.00028718,4]
[366654070,1750377048956,-490.0,0.00028718,4]
[366654071,1750377048966,-490.0,0.00028718,4]
[366654072,1750377048975,-492.76,0.00028718,4]
[366654073,1750377048986,-490.0,0.00028718,4]
[366654074,1750377048995,-490.0,0.00028718,4]
[366654075,1750377049005,-490.0,0.00028718,4]
[366654076,1750377049014,-659.39,0.00028718,4]
[366654077,1750377049025,-490.0,0.00028718,4]
[366654078,1750377049035,-1166.081027,0.00028718,4]
[366654079,1750377049045,-490.0,0.00028718,4]
[366654080,1750377049055,-490.0,0.00028718,4]
[366654081,1750377049066,-782.32,0.00028718,4]
[366654082,1750377049077,-490.0,0.00028718,4]
[366654083,1750377049087,-675.62,0.00028718,4]
[366654084,1750377049096,-490.0,0.00028718,4]
[366654085,1750377049106,-490.0,0.00028718,4]
[366654086,1750377049116,-490.0,0.00028718,4]
[366654087,1750377049125,-490.0,0.00028718,4]
[366654088,1750377049134,-490.0,0.00028718,4]
[366654089,1750377049144,-575.86,0.00028718,4]
[366654090,1750377049154,-490.0,0.00028718,4]
[366654091,1750377049164,-490.0,0.00028718,4]
[366654092,1750377049174,-490.0,0.00028718,4]
[366654093,1750377049184,-490.0,0.00028718,4]
[366654094,1750377049194,-490.0,0.00028718,4]
[366654095,1750377049204,-490.0,0.00028718,4]
[366654096,1750377049213,-490.0,0.00028718,4]
[366654097,1750377049223,-490.0,0.00028718,4]
[366654098,1750377049232,-412.57047877,0.00028718,4]
[366654099,1750377049242,-490.0,0.00028718,4]
[366654100,1750377049252,-514.27,0.00028718,4]
[366654101,1750377049262,-707.36,0.00028718,4]
[366654102,1750377049272,-490.0,0.00028718,4]
[366654103,1750377049282,-490.0,0.00028718,4]
[366654104,1750377049291,-490.0,0.00028718,4]
[366654105,1750377049301,-490.0,0.00028718,4]
[366654106,1750377049311,-1624.19,0.00028718,4]
[366654107,1750377049321,-490.0,0.00028718,4]
[366654108,1750377049331,-490.0,0.00028718,4]
[366654109,1750377049340,-490.0,0.00028718,4]
[366654110,1750377049350,-490.0,0.00028718,4]
[366654111,1750377049359,-490.33,0.00028718,4]
[366654112,1750377049370,-490.0,0.00028718,4]
[366654113,1750377049379,-490.0,0.00028718,4]
[366654114,1750377049388,-490.0,0.00028718,4]
[366654115,1750377049398,-490.0,0.00028718,4]
[366654116,1750377049407,-483.48168459,0.00028718,4]
[366654117,1750377049417,-490.0,0.00028718,4]
[366654118,1750377049427,-1565.47,0.00028718,4]
[366654119,1750377049438,-490.0,0.00028718,4]
[366654120,1750377049448,-490.0,0.00028718,4]
[366654121,1750377049461,-490.0,0.00028718,4]
[366654122,1750377049471,-490.0,0.00028718,4]
[366654123,1750377049483,-490.0,0.00028718,4]
[366654124,1750377049492,-490.72987573,0.00028718,4]
[366654125,1750377049503,-490.0,0.00028718,4]
[366654126,1750377049514,-490.0,0.00028718,4]
[366654127,1750377049524,-490.0,0.00028718,4]
[366654128,1750377049534,-490.0,0.00028718,4]
[366654129,1750377049544,-490.0,0.00028718,4]
[366654130,1750377049556,-490.0,0.00028718,4]
[366654131,1750377049566,-1226.22,0.00028718,4]
[366654132,1750377049575,-490.0,0.00028718,4]
[366654133,1750377049585,-490.0,0.00028718,4]
[366654134,1750377049596,-490.0,0.00028718,4]
[366654135,1750377049606,-490.0,0.00028718,4]
[366654136,1750377049615,-490.0,0.00028718,4]
[366654137,1750377049626,-490.0,0.00028718,4]
[366654138,1750377049635,-490.0,0.00028718,4]
[366654139,1750377049646,-1102.67,0.00028718,4]
[366654140,1750377049655,-690.88,0.00028718,4]
[366654141,1750377049665,-395.65240136,0.00028718,4]
[366654142,1750377049680,-490.0,0.00028718,4]
[366654143,1750377049689,-879.07,0.00028718,4]
[366654144,1750377049699,-494.74602092,0.00028718,4]
[366654145,1750377049709,-500.0,0.00028718,4]
[366654146,1750377049719,-490.0,0.00028718,4]
[366654147,1750377049728,-490.0,0.00028718,4]
[366654148,1750377049738,-490.0,0.00028718,4]
[366654149,1750377049749,-347.80142425,0.00028718,4]
[366654150,1750377049759,-490.0,0.00028718,4]
[366654151,1750377049769,-490.0,0.00028718,4]
[366654152,1750377049779,-490.0,0.00028718,4]
[366654153,1750377049789,-490.0,0.00028718,4]
[366654154,1750377049799,-490.0,0.00028718,4]
[366654155,1750377049809,-242.50381168,0.00028718,4]
[366654156,1750377049819,-490.0,0.00028718,4]
[366654157,1750377049830,-153.79660099,0.00028718,4]
[366654158,1750377049840,-160.69909012,0.00028718,4]
[366654159,1750377049851,-490.0,0.00028718,4]
[366654160,1750377049861,-490.0,0.00028718,4]
[366654161,1750377049872,-490.0,0.00028718,4]
[366654162,1750377049882,-44.67363559,0.00028718,4]
[366654163,1750377049901,-445.32636441,0.00028718,4]
[366654164,1750377049911,-490.0,0.00028718,4]
[366654165,1750377049921,-490.0,0.00028718,4]
[366654166,1750377049931,-490.0,0.00028718,4]
[366654167,1750377049941,-490.0,0.00028718,4]
[366654168,1750377049951,-450.0,0.00028718,4]
[366654169,1750377049961,-799.91,0.00028718,4]
[366654170,1750377049972,-848.92,0.00028718,4]
[366654171,1750377049982,-490.0,0.00028718,4]
[366654172,1750377049991,-559.61,0.00028718,4]
[366654173,1750377050001,-490.0,0.00028718,4]
[366654174,1750377050011,-490.0,0.00028718,4]
[366654175,1750377050022,-751.49,0.00028718,4]
[366654176,1750377050032,-490.0,0.00028718,4]
[366654177,1750377050042,-490.0,0.00028718,4]
[366654178,1750377050052,-779.89,0.00028718,4]
[366654179,1750377050062,-695.98,0.00028718,4]
[366654180,1750377050071,-490.0,0.00028718,4]
[366654181,1750377050082,-490.0,0.00028718,4]
[366654182,1750377050092,-490.0,0.00028718,4]
[366654183,1750377050102,-1544.38,0.00028718,4]
[366654184,1750377050112,-1073.07,0.00028718,4]
[366654185,1750377050122,-490.0,0.00028718,4]
[366654186,1750377050132,-490.0,0.00028718,4]
[366654187,1750377050142,-671.01,0.00028718,4]
[366654188,1750377050152,-490.0,0.00028718,4]
[366654189,1750377050162,-490.0,0.00028718,4]
[366654190,1750377050172,-490.0,0.00028718,4]
[366654191,1750377050182,-1788.02,0.00028718,4]
[366654192,1750377050192,-490.0,0.00028718,4]
[366654193,1750377050202,-590.68,0.00028718,4]
[366654194,1750377050212,-490.0,0.00028718,4]
[366654195,1750377050222,-1739.38,0.00028718,4]
[366654196,1750377050233,-490.0,0.00028718,4]
[366654197,1750377050242,-490.0,0.00028718,4]
[366654198,1750377050252,-490.0,0.00028718,4]
[366654199,1750377050262,-490.0,0.00028718,4]
[366654200,1750377050272,-490.0,0.00028718,4]
[366654201,1750377050283,-747.55,0.00028718,4]
[366654202,1750377050293,-490.0,0.00028718,4]
[366654203,1750377050302,-698.62,0.00028718,4]
[366654204,1750377050312,-4057.49,0.00028718,4]
[366654205,1750377050322,-490.0,0.00028718,4]
[366654206,1750377050333,-490.0,0.00028718,4]
[366654207,1750377050343,-762.61,0.00028718,4]
[366654208,1750377050353,-592.89,0.00028718,4]
[366654209,1750377050364,-403.89348079,0.00028718,4]
[366654210,1750377050374,-154.8104788,0.00028718,4]
[366654211,1750377050384,-3884.52,0.00028718,4]
[366654212,1750377050394,-490.0,0.00028718,4]
[366654213,1750377050404,-490.0,0.00028718,4]
[366654214,1750377050413,-490.0,0.00028718,4]
[366654215,1750377050423,-490.0,0.00028718,4]
[366654216,1750377050434,-7983.26,0.00028718,4]
[366654217,1750377050444,-857.72,0.00028718,4]
[366654218,1750377050454,-4040.53,0.00028718,4]
[366654219,1750377050464,-553.03,0.00028718,4]
[366654220,1750377050474,-1282.01,0.00028718,4]
[366654221,1750377050483,-806.79,0.00028718,4]
[366654222,1750377050493,-490.0,0.00028718,4]
[366654223,1750377050504,-490.0,0.00028718,4]
[366654224,1750377050513,-756.0,0.00028718,4]
[366654225,1750377050523,-490.0,0.00028718,4]
[366654226,1750377050533,-490.0,0.00028718,4]
[366654227,1750377050543,-639.19,0.00028718,4]
[366654228,1750377050554,-3317.19,0.00028718,4]
[366654229,1750377050564,-667.01,0.00028718,4]
[366654230,1750377050574,-564.33913071,0.00028718,4]
[366654231,1750377050584,-490.0,0.00028718,4]
[366654232,1750377050594,-1438.78,0.00028718,4]
[366654233,1750377050603,-1350.51,0.00028718,4]
[366654234,1750377050613,-3142.77,0.00028718,4]
[366654235,1750377050623,-490.0,0.00028718,4]
[366654236,1750377050633,-490.0,0.00028718,4]
[366654237,1750377050643,-490.0,0.00028718,4]
[366654238,1750377050652,-1000.0,0.00028718,2]
[366654239,1750377050662,-490.0,0.00028718,4]
[366654240,1750377050674,-1735.59,0.00028718,4]
[366654241,1750377050685,-1680.17,0.00028718,4]
[366654242,1750377050695,-1761.13,0.00028718,4]
[366654243,1750377050706,-490.43524426,0.00028718,4]
[366654244,1750377050717,-1000.43,0.00028718,4]
[366654245,1750377050727,-490.0,0.00028718,4]
[366654246,1750377050737,-490.0,0.00028718,4]
[366654247,1750377050747,-995.15,0.00028718,4]
[366654248,1750377050759,-462.86586575,0.00028718,4]
[366654249,1750377051016,-4698.28,0.00028718,4]
[366654250,1750377051027,-1506.05,0.00028718,4]
[366654251,1750377051038,-1207.32,0.00028718,4]
[366654252,1750377051049,-490.0,0.00028718,4]
[366654253,1750377051059,-490.0,0.00028718,4]
[366654254,1750377051069,-3007.06,0.00028718,4]
[366654255,1750377051079,-614.5,0.00028718,4]
[366654256,1750377051089,-251.89374371,0.00028718,4]
[366654257,1750377051099,-490.0,0.00028718,4]
[366654258,1750377051109,-1693.84,0.00028718,4]
[366654259,1750377051120,-823.56,0.00028718,4]
[366654260,1750377051130,-490.0,0.00028718,4]
[366654261,1750377051140,-490.0,0.00028718,4]
[366654262,1750377051152,-490.0,0.00028718,4]
[366654263,1750377051165,-200.0,0.00028718,2]
[366654264,1750377051175,-490.0,0.00028718,4]
[366654265,1750377051185,-490.0,0.00028718,4]
[366654266,1750377051195,-490.0,0.00028718,4]
[366654267,1750377051206,-499.71,0.00028718,4]
[366654268,1750377051216,-1402.79,0.00028718,4]
[366654269,1750377051226,-490.0,0.00028718,4]
[366654270,1750377051235,-490.0,0.00028718,4]
[366654271,1750377051248,-1556.53,0.00028718,4]
[366654272,1750377051258,-490.0,0.00028718,4]
[366654273,1750377051269,-2137.13,0.00028718,4]
[366654274,1750377051279,-182.55798338,0.00028718,4]
[366654275,1750377051289,-1102.96,0.00028718,4]
[366654276,1750377051299,-490.0,0.00028718,4]
[366654277,1750377051309,-337.51755283,0.00028718,4]
[366654278,1750377051319,-490.0,0.00028718,4]
[366654279,1750377051329,-490.0,0.00028718,4]
[366654280,1750377051339,-721.38,0.00028718,4]
[366654281,1750377051349,-656.36,0.00028718,4]
[366654282,1750377051358,-465.29176255,0.00028718,4]
[366654283,1750377051368,-1390.11,0.00028718,4]
[366654284,1750377051378,-1497.29,0.00028718,4]
[366654285,1750377051388,-2371.37,0.00028718,4]
[366654286,1750377051398,-490.0,0.00028718,4]
[366654287,1750377051409,-490.0,0.00028718,4]
[366654288,1750377051419,-490.0,0.00028718,4]
[366654289,1750377051430,-5039.04,0.00028718,4]
[366654290,1750377051440,-3054.93707119,0.00028718,4]
[366654291,1750377051455,-600.0,0.00028718,4]
[366654292,1750377523928,250.0,0.00015,2]
[366654294,1750377565474,150.5,0.00013699,2]